fUSD/lending_fUSD_20251224
["ID","MTS","AMOUNT","RATE_DAILY","PERIOD"]
[399678428,1766610634515,-543.0,0.00015561,2]
[399678429,1766610634525,-789.97391259,0.00015561,2]
[399678430,1766610634536,-287.61899177,0.00015561,2]
[399678431,1766610634547,-1107.43,0.00015616,2]
[399678432,1766610634557,-433.0,0.00015616,2]
[399678433,1766610634566,-500.0,0.00015786,2]
[399678434,1766610634576,-469.51043734,0.00015786,2]
[399678435,1766610634587,-500.0,0.00015786,2]
[399678436,1766610634598,-4746.0,0.00015798,2]
[399678437,1766610634611,-1107.43,0.0001589,2]
[399678438,1766610634621,-166.66,0.00015897,2]
[399678439,1766610634632,-189.54,0.000159,2]
[399678440,1766610634642,-587.0,0.00016001,2]
[399678441,1766610634653,-2351.0,0.00016109,2]
[399678442,1766610634664,-1107.43,0.00016164,2]
[399678443,1766610634677,-234.67,0.00016321,2]
[399678444,1766610634687,-166.66,0.00016405,2]
[399678445,1766610634698,-156.42745171,0.00016438,2]
[399678446,1766610634710,-1107.43,0.00016438,2]
[399678447,1766610634720,-12723.8,0.00016438,2]
[399678448,1766610634731,-9837.53,0.00016438,2]
[399678449,1766610634741,-500.0,0.00016466,2]
[399678450,1766610634751,-14726.50733833,0.00016471,2]
[399678451,1766610634762,-189.54,0.00016695,2]
[399678452,1766610634772,-1107.49066189,0.00016712,2]
[399678453,1766610634782,-522.207,0.00016718,2]
[399678454,1766610634792,-1267.071,0.00016718,2]
[399678455,1766610634802,-1198.0,0.00016718,2]
[399678456,1766610634812,-912.0,0.00016718,2]
[399678457,1766610634821,-2430.0,0.00016718,2]
[399678458,1766610634831,-4807.0,0.00016718,2]
[399678459,1766610634841,-1000.0,0.00016758,2]
[399678460,1766610634851,-200.0,0.00016792,2]
[399678461,1766610634862,-582.27761239,0.00016899,2]
[399678462,1766610634872,-500.0,0.00016899,2]
[399678463,1766610634882,-380.48344145,0.000169,2]
[399678464,1766610634892,-736.0,0.00016907,2]
[399678465,1766610634902,-226.0,0.00016912,2]
[399678466,1766610634912,-166.66,0.00016913,2]
[399678467,1766610634922,-346.92554585,0.0001693,2]
[399678468,1766610634932,-543.0,0.0001693,2]
[399678469,1766610634942,-298.26089446,0.0001693,2]
[399678470,1766610634952,-596.27065898,0.00016931,2]
[399678471,1766610634962,-599.60298507,0.00016931,2]
[399678472,1766610634971,-500.0,0.00016973,2]
[399678473,1766610634981,-500.0,0.00016973,2]
[399678474,1766610634991,-501.65480371,0.00016973,2]
[399678475,1766610635001,-500.0,0.00016973,2]
[399678476,1766610635010,-500.0,0.00016973,2]
[399678477,1766610635020,-500.0,0.00016973,2]
[399678478,1766610635035,-500.0,0.00016973,2]
[399678479,1766610635045,-500.0,0.00016973,2]
[399678480,1766610635055,-500.0,0.00016973,2]
[399678481,1766610635065,-1747.0,0.00016974,2]
[399678482,1766610635075,-500.0,0.00016996,2]
[399678483,1766610635085,-208.69,0.00016996,2]
[399678484,1766610635095,-500.0,0.00016996,2]
[399678485,1766610635107,-500.0,0.00016996,2]
[399678486,1766610635117,-506.44561835,0.00016996,2]
[399678487,1766610635126,-500.0,0.00016996,2]
[399678488,1766610635136,-500.0,0.00016996,2]
[399678489,1766610635146,-500.0,0.00016999,2]
[399678490,1766610635156,-500.0,0.00016999,2]
[399678491,1766610635165,-500.0,0.00016999,2]
[399678492,1766610635175,-500.0,0.00016999,2]
[399678493,1766610635185,-150.0,0.00016999,2]
[399678494,1766610635195,-82472.03246883,0.00017,2]
[399678495,1766610635695,-92669.83313511,0.00017,2]
[399678496,1766610635708,-29397.37876857,0.00017,2]
[399678497,1766610635721,-36169.61872216,0.00017,2]
[399678498,1766610635780,-995.88708944,0.00017,2]
[399678499,1766610635792,-999.0,0.00017,2]
[399678500,1766610635804,-999.0,0.00017,2]
[399678501,1766610635821,-1741.44480262,0.00017,2]
[399678502,1766610635833,-931.037,0.00017,2]
[399678503,1766610635845,-714.85895225,0.00017,2]
[399678664,1766610639853,-151.0,0.00014955,2]
[399678665,1766610639863,-259.85055187,0.00016718,2]
[399678715,1766610640895,-1.7e-07,0.00016718,2]
[399678716,1766610640907,-5797.90261544,0.00016718,2]
[399678719,1766610642875,-172.66563452,0.00016718,2]
[399678720,1766610643150,-302.581198,0.00016718,2]
[399678721,1766610643160,-7007.636931,0.00017,2]
[399678732,1766610645648,-1152.81576857,0.00017,2]
[399678751,1766610646357,-1087.41118798,0.00017,2]
[399678779,1766610661133,500.0,0.00013214,2]
[399678780,1766610667577,9500.01,0.00013214,2]
[399678781,1766610667600,10000.01,0.00013214,2]
[399678782,1766610667623,10000.01,0.00013214,2]
[399678783,1766610667645,4004.5599,0.00013214,2]
[399678784,1766610675323,500.0,0.00013698,2]
[399678785,1766610684424,5495.4501,0.00013214,2]
[399678786,1766610684456,10000.01,0.00013214,2]
[399678787,1766610684498,10000.01,0.00013214,2]
[399678788,1766610684537,10000.01,0.00013214,2]
[399678789,1766610684567,10000.01,0.00013214,2]
[399678790,1766610684595,10000.01,0.00013214,2]
[399678791,1766610684624,10000.01,0.00013214,2]
[399678792,1766610684652,10000.01,0.00013214,2]
[399678793,1766610684679,10000.01,0.00013214,2]
[399678794,1766610684707,10000.01,0.00013214,2]
[399678795,1766610692348,-7574.81728912,0.00013214,2]
[399678796,1766610692471,-10000.01,0.00013214,2]
[399678797,1766610692613,-10000.01,0.00013214,2]
[399678798,1766610694389,-10000.01,0.00013214,2]
[399678799,1766610694435,-10000.01,0.00013214,2]
[399678800,1766610694527,-10000.01,0.00013214,2]
[399678801,1766610694705,-10000.01,0.00013214,2]
[399678802,1766610694834,-10000.01,0.00013214,2]
[399678803,1766610694938,-10000.01,0.00013214,2]
[399678804,1766610695085,-10000.01,0.00013214,2]
[399678805,1766610710243,8955.20303637,0.00013114,2]
[399678806,1766610715482,1044.80696363,0.00013114,2]
[399678807,1766610715507,546.19833964,0.00013114,2]
[399678808,1766610721347,300.0,0.00013213,2]
[399678809,1766610721445,150.0,0.00013213,2]
[399678810,1766610723046,300.0,0.00013213,2]
[399678811,1766610788949,485.0,0.00013213,2]
[399678812,1766610841186,300.0,0.00013213,2]
[399678813,1766610901130,300.0,0.00013213,2]
[399678814,1766610901486,1200.0,0.00013213,2]
[399678815,1766610902223,150.0,0.00013213,2]
[399678816,1766610904800,496.06813003,0.00013213,2]
[399678817,1766610918255,500.0,0.00013213,2]
[399678818,1766610918342,500.0,0.00013213,2]
[399678819,1766610918396,500.0,0.00013213,2]
[399678820,1766610918446,600.85708196,0.00013213,2]
[399678821,1766610924785,222.50026653,0.00013213,2]
[399678822,1766610932962,500.0,0.00013213,2]
[399678823,1766610933224,345.63469354,0.00013213,2]
[399678824,1766610939216,236.37477528,0.00013213,2]
[399678825,1766610961195,300.0,0.00013213,2]
[399678826,1766610965382,500.0,0.00013213,2]
[399678827,1766610965480,500.0,0.00013213,2]
[399678828,1766610965567,581.412619,0.00013213,2]
[399678829,1766611004996,485.96409402,0.00013213,2]
[399678830,1766611005029,14.03590598,0.00013213,2]
[399678831,1766611021218,300.0,0.00013213,2]
[399678832,1766611081594,150.0,0.00013213,2]
[399678833,1766611093880,500.0,0.00013213,2]
[399678834,1766611096537,8059.68273267,0.00013114,2]
[399678835,1766611099548,500.0,0.00013213,2]
[399678836,1766611108804,476.29136135,0.00013213,2]
[399678837,1766611108836,23.70863865,0.00013213,2]
[399678838,1766611131380,500.0,0.00013213,2]
[399678839,1766611195573,500.0,0.00013213,2]
[399678840,1766611201194,300.0,0.00013213,2]
[399678841,1766611201237,1200.0,0.00013213,2]
[399678842,1766611201275,300.0,0.00013213,2]
[399678843,1766611225707,1431.90477297,0.00013114,2]
[399678844,1766611227687,500.0,0.00013213,2]
[399678845,1766611259646,500.0,0.00013213,2]
[399678846,1766611261563,150.0,0.00013213,2]
[399678847,1766611261602,300.0,0.00013213,2]
[399678848,1766611291539,500.0,0.00013213,2]
[399678849,1766611294051,2159.575,0.0001295,2]
[399678850,1766611294325,244.263,0.0001295,2]
[399678851,1766611319401,500.0,0.00013213,2]
[399678852,1766611356068,500.0,0.00013213,2]
[399678853,1766611381201,300.0,0.00013213,2]
[399678854,1766611387501,90.55858838,0.00013213,2]
[399678855,1766611387531,409.44141162,0.00013213,2]
[399678856,1766611419342,500.0,0.00013213,2]
[399678857,1766611427870,216.05679117,0.00013161,2]
[399678858,1766611441198,300.0,0.00013213,2]
[399678859,1766611441717,150.0,0.00013213,2]
[399678860,1766611451554,500.0,0.00013213,2]
[399678861,1766611483605,500.0,0.00013213,2]
[399678862,1766611484026,7253.71445943,0.00013114,2]
[399678863,1766611501148,170.79733778,0.00013213,2]
[399678864,1766611501172,129.20266222,0.00013213,2]
[399678865,1766611501231,1200.0,0.00013213,2]
[399678866,1766611516146,500.0,0.00013213,2]
[399678868,1766611548315,500.0,0.00013213,2]
[399678869,1766611559537,2350.23441356,8e-05,2]
[399678870,1766611580014,500.0,0.00013213,2]
[399678871,1766611590409,999.0,0.00013992,3]
[399678872,1766611612050,500.0,0.00013213,2]
[399678873,1766611621373,150.0,0.00013213,2]
[399678874,1766611623129,300.0,0.00013213,2]
[399678875,1766611623168,500.0,0.00013213,2]
[399678876,1766611623207,171.56248562,0.00013213,2]
[399678877,1766611629694,205.0,9.8e-05,2]
[399678878,1766611632471,531.11367766,0.00013213,2]
[399678879,1766611633892,259.09576182,0.000101,2]
[399678880,1766611642108,328.43751438,0.00013213,2]
[399678881,1766611650282,500.0,0.00013213,2]
[399678882,1766611650340,500.0,0.00013213,2]
[399678883,1766611650516,875.36348474,6.986e-05,2]
[399678884,1766611650545,861.56651526,6.986e-05,2]
[399678885,1766611650926,1736.93,7.354e-05,2]
[399678886,1766611651154,1736.93,7.721e-05,2]
[399678887,1766611651365,1736.93,8.089e-05,2]
[399678888,1766611651564,1736.93,8.457e-05,2]
[399678889,1766611652205,1736.93,8.824e-05,2]
[399678890,1766611652333,453.79348474,9.192e-05,2]
[399678891,1766611652359,1283.13651526,9.192e-05,2]
[399678892,1766611652471,1736.93,9.56e-05,2]
[399678893,1766611652607,1736.93,9.927e-05,2]
[399678894,1766611652716,1736.93,0.00010295,2]
[399678895,1766611652890,1736.93,0.00010663,2]
[399678896,1766611653087,1736.93,0.0001103,2]
[399678897,1766611653483,32.22348474,0.00011398,2]
[399678898,1766611653510,1704.70651526,0.00011398,2]
[399678899,1766611653700,1736.93,0.00011766,2]
[399678900,1766611653908,1736.93,0.00012133,2]
[399678901,1766611654114,1736.93,0.00012501,2]
[399678902,1766611654518,1736.93,0.00012869,2]
[399678903,1766611660616,195.89081608,0.00013213,2]
[399678904,1766611664781,1151.69266866,0.00013,2]
[399678905,1766611664805,1357.40694152,0.00013,2]
[399678906,1766611669390,1368.12742309,0.00012,2]
[399678907,1766611669948,500.0,0.00013213,2]
[399678908,1766611670031,500.0,0.00013213,2]
[399678909,1766611670098,603.37287019,0.00013213,2]
[399678910,1766611680172,5671.1027652,0.00013114,2]
[399678911,1766611680205,10000.01,0.00013114,2]
[399678912,1766611680239,10000.01,0.00013114,2]
[399678913,1766611680271,10000.01,0.00013114,2]
[399678914,1766611680306,10000.01,0.00013114,2]
[399678915,1766611680345,10000.01,0.00013114,2]
[399678916,1766611680377,10000.01,0.00013114,2]
[399678917,1766611680411,10000.01,0.00013114,2]
[399678918,1766611680444,10000.01,0.00013114,2]
[399678919,1766611680475,10000.01,0.00013114,2]
[399678920,1766611689258,1200.0,0.00013113,2]
[399678921,1766611695838,1925.97390625,0.0001,2]
[399678922,1766611697758,390.37563915,7.888e-05,2]
[399678925,1766611707203,2727.54085448,0.0001,2]
[399678927,1766611710112,267.47871705,0.000107,2]
[399678928,1766611711653,2746.891468,0.00013048,2]
[399678930,1766611713300,431.12879113,0.00013113,2]
[399678931,1766611713355,310.62062394,0.00013113,2]
[399678932,1766611713386,189.37937606,0.00013113,2]
[399678933,1766611713569,155.75018657,0.00013113,2]
[399678934,1766611713670,322.8402366,0.00013113,2]
[399678935,1766611715746,175.71251322,0.00013113,2]
[399678936,1766611715817,233.42856466,0.00013113,2]
[399678937,1766611716947,9590.86892212,0.0001,2]
[399678938,1766611716974,4420.84864399,0.0001,2]
[399678939,1766611718056,155.53883646,0.00013113,2]
[399678940,1766611725772,500.0,0.00013113,2]
[399678941,1766611725838,500.0,0.00013113,2]
[399678942,1766611725888,178.15254114,0.00013113,2]
[399678943,1766611736035,1461.46164351,0.00013014,2]
[399678944,1766611741677,300.0,0.00013113,2]
[399678945,1766611744131,1270.17811659,0.00013113,2]
[399678946,1766611744170,259.22916117,0.00013113,2]
[399678947,1766611744212,502.33995082,0.00013113,2]
[399678948,1766611748599,452.26110632,0.00013113,2]
[399678949,1766611748630,47.73889368,0.00013113,2]
[399678950,1766611751640,2967.0270756,0.00013113,2]
[399678951,1766611752097,4652.71896201,0.00013113,2]
[399678952,1766611771403,500.0,0.00013113,2]
[399678953,1766611789004,1142.32,0.00021918,30]
[399678954,1766611801505,300.0,0.00013113,2]
[399678955,1766611801544,150.0,0.00013113,2]
[399678956,1766611801587,1200.0,0.00013113,2]
[399678957,1766611801625,182.52506871,0.00013113,2]
[399678958,1766611801649,117.47493129,0.00013113,2]
[399678959,1766611803585,500.0,0.00013113,2]
[399678966,1766611831677,-14521.67020089,0.00013114,2]
[399678968,1766611831689,-503.42733945,0.00013114,2]
[399678969,1766611831794,-4812.93284303,0.00013114,2]
[399678970,1766611831806,-4351.4977131,0.00013114,2]
[399678971,1766611831817,-3086.21323914,0.00013114,2]
[399678972,1766611831856,-572.0678,0.00013114,2]
[399678973,1766611831867,-724.37785151,0.00013114,2]
[399678974,1766611831878,-546.54497025,0.00013114,2]
[399678975,1766611831889,-562.249999,0.00013114,2]
[399678977,1766611831939,-575.5876787,0.00013114,2]
[399679013,1766611836271,500.0,0.00013113,2]
[399679017,1766611838161,-643.53439744,0.00013114,2]
[399679020,1766611839795,-840.20286078,0.00013114,2]
[399679084,1766611845834,-500.0,0.00013114,2]
[399679085,1766611845850,-8456.32238761,0.00013114,2]
[399679086,1766611845861,-988.49382925,0.00013114,2]
[399679087,1766611845873,-4787.58517645,0.00013114,2]
[399679088,1766611845884,-1236.613284,0.00013114,2]
[399679089,1766611845896,-5911.61489766,0.00013114,2]
[399679090,1766611845908,-456.93,0.00013114,2]
[399679091,1766611845919,-434.405,0.00013114,2]
[399679177,1766611861290,300.0,0.00013113,2]
[399679178,1766611870255,6595.46116434,0.00013014,2]
[399679179,1766611894075,1727.66,0.00012852,2]
[399679180,1766611894296,195.411,0.00012852,2]
[399679181,1766611919083,64.00290437,0.00013113,2]
[399679182,1766611919109,313.23141215,0.00013113,2]
[399679183,1766611921224,300.0,0.00013113,2]
[399679184,1766611975304,-6850.0,0.00013114,2]
[399679185,1766611977017,500.0,0.00013113,2]
[399679186,1766611977060,500.0,0.00013113,2]
[399679187,1766611977110,500.0,0.00013113,2]
[399679188,1766611977153,500.0,0.00013113,2]
[399679189,1766611977196,500.0,0.00013113,2]
[399679190,1766611977242,500.0,0.00013113,2]
[399679191,1766611977329,500.0,0.00013113,2]
[399679192,1766611977374,500.0,0.00013113,2]
[399679193,1766611977415,500.0,0.00013113,2]
[399679194,1766611977456,500.0,0.00013113,2]
[399679195,1766611977495,500.0,0.00013113,2]
[399679196,1766611977534,500.0,0.00013113,2]
[399679197,1766611977594,500.0,0.00013113,2]
[399679198,1766611977633,500.0,0.00013113,2]
[399679199,1766611977676,500.0,0.00013113,2]
[399679200,1766611977718,500.0,0.00013113,2]
[399679201,1766611977759,500.0,0.00013113,2]
[399679202,1766611977798,500.0,0.00013113,2]
[399679203,1766611977862,386.77858785,0.00013113,2]
[399679204,1766611977890,113.22141215,0.00013113,2]
[399679205,1766611977972,500.0,0.00013113,2]
[399679206,1766611978082,500.0,0.00013113,2]
[399679207,1766611978124,500.0,0.00013113,2]
[399679208,1766611978166,500.0,0.00013113,2]
[399679209,1766611978221,500.0,0.00013113,2]
[399679210,1766611978290,500.0,0.00013113,2]
[399679211,1766611978337,500.0,0.00013113,2]
[399679212,1766611978378,500.0,0.00013113,2]
[399679213,1766611978419,500.0,0.00013113,2]
[399679214,1766611978459,275.0,0.00013113,2]
[399679215,1766611978521,500.0,0.00013113,2]
[399679216,1766611981652,150.0,0.00013113,2]
[399679217,1766611983293,300.0,0.00013113,2]
[399679218,1766611986038,184.44195422,0.00013113,2]
[399679219,1766611988884,1000.0,0.00013014,2]
[399679220,1766611988946,1200.0,0.00013113,2]
[399679221,1766612007367,1777.34663363,0.00013014,2]
[399679222,1766612007394,722.65336637,0.00013014,2]
[399679223,1766612012255,500.0,0.00013113,2]
[399679224,1766612012329,500.0,0.00013113,2]
[399679225,1766612012380,500.0,0.00013113,2]
[399679226,1766612012460,500.0,0.00013113,2]
[399679227,1766612012536,500.0,0.00013113,2]
[399679228,1766612012621,650.0,0.00013113,2]
[399679230,1766612027740,500.0,0.00013113,2]
[399679231,1766612041194,300.0,0.00013113,2]
[399679232,1766612059661,500.0,0.00013113,2]
[399679233,1766612091331,633.0600064,0.00013113,2]
[399679234,1766612101403,300.0,0.00013113,2]
[399679235,1766612101440,1200.0,0.00013113,2]
[399679236,1766612101555,500.0,0.00013014,2]
[399679237,1766612105500,199.44889796,0.00013014,2]
[399679238,1766612138065,1000.0,0.00013014,2]
[399679239,1766612156433,2500.0,0.00013014,2]
[399679240,1766612161273,300.0,0.00013113,2]
[399679241,1766612161793,150.0,0.00013113,2]
[399679242,1766612171647,189.68799188,0.00013113,2]
[399679243,1766612187943,500.0,0.00013113,2]
[399679244,1766612190158,500.0,0.00013113,2]
[399679245,1766612190207,183.6958379,0.00013113,2]
[399679246,1766612219464,500.0,0.00013113,2]
[399679247,1766612221193,300.0,0.00013113,2]
[399679248,1766612229838,500.0,0.00013014,2]
[399679249,1766612233607,207.4,0.00013114,2]
[399679250,1766612233645,200.0,0.00013114,2]
[399679251,1766612235766,2769.77727226,0.00013014,2]
[399679252,1766612235790,10000.01,0.00013014,2]
[399679253,1766612235814,9455.14292774,0.00013014,2]
[399679254,1766612236544,-498.18392849,0.00013114,2]
[399679255,1766612239757,500.0,0.00013114,2]
[399679256,1766612239821,500.0,0.00013114,2]
[399679257,1766612240110,500.0,0.00013114,2]
[399679258,1766612240199,500.0,0.00013114,2]
[399679259,1766612240567,500.0,0.00013114,2]
[399679260,1766612240685,500.0,0.00013114,2]
[399679261,1766612241182,500.0,0.00013114,2]
[399679262,1766612241329,500.0,0.00013114,2]
[399679263,1766612241773,500.0,0.00013114,2]
[399679264,1766612241950,500.0,0.00013114,2]
[399679265,1766612242469,500.0,0.00013114,2]
[399679266,1766612242566,500.0,0.00013114,2]
[399679267,1766612243063,500.0,0.00013114,2]
[399679268,1766612243161,500.0,0.00013114,2]
[399679269,1766612243651,500.0,0.00013114,2]
[399679270,1766612243747,500.0,0.00013114,2]
[399679271,1766612244263,500.0,0.00013114,2]
[399679272,1766612244779,500.0,0.00013114,2]
[399679273,1766612244840,-178.66115465,0.00013114,2]
[399679274,1766612245203,500.0,0.00013114,2]
[399679275,1766612245263,500.0,0.00013114,2]
[399679276,1766612245490,0.01,0.00013114,2]
[399679277,1766612245514,499.99,0.00013114,2]
[399679278,1766612245665,500.0,0.00013114,2]
[399679279,1766612247118,2798.29427779,0.00013064,2]
[399679280,1766612247540,-182.75482161,0.00013114,2]
[399679281,1766612251418,500.0,0.00013113,2]
[399679282,1766612251575,500.0,0.00013114,2]
[399679283,1766612253419,-182.42775109,0.00013114,2]
[399679284,1766612255639,200.0,0.00013114,2]
[399679285,1766612255899,151.0,0.00013114,2]
[399679286,1766612256503,4850.72572221,0.00013064,2]
[399679287,1766612256527,1085.18932566,0.00013064,2]
[399679288,1766612256566,151.0,0.00013114,2]
[399679289,1766612257158,151.0,0.00013114,2]
[399679290,1766612257771,151.0,0.00013114,2]
[399679291,1766612258641,151.0,0.00013114,2]
[399679292,1766612258687,-195.0,0.00013114,2]
[399679293,1766612258970,151.0,0.00013114,2]
[399679294,1766612259606,151.0,0.00013114,2]
[399679295,1766612260201,151.0,0.00013114,2]
[399679296,1766612260496,-250.0,0.00013114,2]
[399679297,1766612260794,151.0,0.00013114,2]
[399679298,1766612261381,151.0,0.00013114,2]
[399679299,1766612262039,151.0,0.00013114,2]
[399679300,1766612263613,-300.0,0.00013114,2]
[399679301,1766612265451,-195.0,0.00013114,2]
[399679302,1766612267317,-195.0,0.00013114,2]
[399679303,1766612272441,-165.10888867,0.00013114,2]
[399679304,1766612285506,-185.98743255,0.00013114,2]
[399679305,1766612287888,-195.08800762,0.00013114,2]
[399679306,1766612299356,267.3552,0.00013014,2]
[399679307,1766612311811,2500.0,0.00013014,2]
[399679308,1766612314949,-230.89106165,0.00013114,2]
[399679309,1766612318852,4471.16,0.00013069,2]
[399679310,1766612319410,-195.0,0.00013114,2]
[399679311,1766612321456,-205.26571113,0.00013114,2]
[399679312,1766612330642,166.30547434,0.00013039,2]
[399679313,1766612330675,33.1434236,0.00013039,2]
[399679314,1766612337647,500.0,0.00013113,2]
[399679315,1766612341232,300.0,0.00013113,2]
[399679316,1766612341534,150.0,0.00013113,2]
[399679317,1766612355100,725.69805217,0.00013039,2]
[399679318,1766612358642,500.0,0.00013113,2]
[399679319,1766612358695,500.0,0.00013113,2]
[399679320,1766612379117,334.4045,0.00013014,2]
[399679321,1766612379657,500.0,0.00013113,2]
[399679322,1766612389724,-219.09285113,0.00013114,2]
[399679323,1766612392847,-289.60137542,0.00013114,2]
[399679324,1766612399707,200.0,0.00013075,2]
[399679325,1766612401922,1200.0,0.00013113,2]
[399679326,1766612411558,500.0,0.00013113,2]
[399679327,1766612444118,500.0,0.00013113,2]
[399679328,1766612455378,1528.0586,0.00013014,2]
[399679329,1766612476515,500.0,0.00013113,2]
[399679330,1766612494329,1382.128,0.00012852,2]
[399679331,1766612494522,156.329,0.00012852,2]
[399679332,1766612516432,490.24842423,0.00013056,2]
[399679333,1766612516457,8391.26157577,0.00013056,2]
[399679334,1766612521839,150.0,0.00013113,2]
[399679335,1766612530344,500.0,0.00013114,2]
[399679336,1766612530445,207.4,0.00013114,2]
[399679337,1766612530668,191.07080815,0.00013101,2]
[399679338,1766612538489,500.0,0.00013113,2]
[399679339,1766612541725,60.27761608,0.00013114,2]
[399679340,1766612541749,439.72238392,0.00013114,2]
[399679341,1766612542335,500.0,0.00013114,2]
[399679342,1766612542932,500.0,0.00013114,2]
[399679343,1766612543850,500.0,0.00013114,2]
[399679344,1766612544156,500.0,0.00013114,2]
[399679345,1766612544689,513.22375719,0.00013114,2]
[399679346,1766612546589,199.44889794,0.00013039,2]
[399679347,1766612546706,151.0,0.00013114,2]
[399679348,1766612547805,500.0,0.00013114,2]
[399679349,1766612555274,-500.0,0.00013113,2]
[399679350,1766612555807,-6711.74592066,0.00013114,2]
[399679351,1766612555839,-10000.01,0.00013114,2]
[399679352,1766612555855,-10000.01,0.00013114,2]
[399679353,1766612556011,-10000.01,0.00013114,2]
[399679354,1766612556097,-10000.01,0.00013114,2]
[399679355,1766612556143,-10000.01,0.00013114,2]
[399679356,1766612556168,-10000.01,0.00013114,2]
[399679357,1766612556186,-10000.01,0.00013114,2]
[399679358,1766612557510,-10000.01,0.00013114,2]
[399679359,1766612557594,-10000.01,0.00013114,2]
[399679360,1766612563931,-10000.01,0.00013114,2]
[399679361,1766612564101,-10000.01,0.00013114,2]
[399679362,1766612564224,-10000.01,0.00013114,2]
[399679363,1766612564324,-10000.01,0.00013114,2]
[399679364,1766612564447,-10000.01,0.00013114,2]
[399679365,1766612564730,-10000.01,0.00013114,2]
[399679366,1766612564795,-10000.01,0.00013114,2]
[399679367,1766612564917,-10000.01,0.00013114,2]
[399679368,1766612584236,-259.25722882,0.00013114,2]
[399679369,1766612589029,-253.25722882,0.00013114,2]
[399679370,1766612614374,-359.52578519,0.00013114,2]
[399679371,1766612617927,-284.83146971,0.00013114,2]
[399679372,1766612623013,-252.05235254,0.00013114,2]
[399679373,1766612626617,-183.42794163,0.00013114,2]
[399679374,1766612642868,5342.32354311,0.00013039,2]
[399679375,1766612676995,500.0,0.0001309,2]
[399679376,1766612682724,500.0,0.00013113,2]
[399679377,1766612682809,500.0,0.00013113,2]
[399679378,1766612682885,500.0,0.00013113,2]
[399679379,1766612682938,300.0,0.00013113,2]
[399679380,1766612690382,-311.50165396,0.00013114,2]
[399679381,1766612700075,2357.68645689,0.00013014,2]
[399679382,1766612700108,10000.01,0.00013014,2]
[399679383,1766612700141,10000.01,0.00013014,2]
[399679384,1766612700174,10000.01,0.00013014,2]
[399679385,1766612700208,10000.01,0.00013014,2]
[399679386,1766612700241,10000.01,0.00013014,2]
[399679387,1766612700274,10000.01,0.00013014,2]
[399679388,1766612700312,10000.01,0.00013014,2]
[399679389,1766612700345,10000.01,0.00013014,2]
[399679390,1766612700377,10000.01,0.00013014,2]
[399679391,1766612704555,-150.0,0.00013013,2]
[399679392,1766612757410,2518.46485002,0.00013013,2]
[399679393,1766612761250,300.0,0.00013013,2]
[399679394,1766612792215,500.0,0.00013013,2]
[399679395,1766612792336,386.48147527,0.00013013,2]